Cogmind - Beta 16 @@@ ROGUE MODE // 2025.11.14 @ 17:41:24 Player: Stump Result: Destroyed by S-10 Pest with Light Assault Rifle Performance ------------- Evolutions (2) 1000 Regions Visited (6) 1200 Robots Destroyed (113) 565 Value Destroyed (4316) 4316 Prototype IDs (4) 80 Alien Tech Used (0) 0 Bonus (1231) 1231 TOTAL SCORE: 8392 Bonus ------- High Alert Combat Kills 531 Entered Garrisons 200 Used RIF Installer 500 Cogmind --------- Core Integrity 0/550 Matter 75/300 Energy 99/100 System Corruption 9% Temperature Cool (0) Movement Core (50) Location -8/Storage Parts ------- > --- POWER (1) -------- (None) > --- PROPULSION (4) --- (None) > --- UTILITY (4) ------ (None) > --- WEAPON (2) ------- (None) > --- INVENTORY (5) ---- Light Nuclear Core Matter Compressor (49) Hacking Suite Remote Datajack Axe Peak State ------------ > --- POWER ------------ Light Nuclear Core > --- PROPULSION ------- Gravmag System Gravmag System Gravmag System Gravmag System > --- UTILITY ---------- Improved Heat Sink Large Storage Unit Signal Interpreter Improved Hardlight Generator > --- WEAPON ----------- Minigun Magnetic Acceleration Cannon > --- INVENTORY -------- Reinforced Ion Engine Small Storage Unit Matter Compressor Sensor Array Sensor Array Transmission Jammer Hacking Suite Relay Coupler [NC] Relay Coupler [Hunter] Relay Coupler [Heavy] Minigun Rocket Launcher Remote Datajack Remote Datajack Axe [Rating: 41] Favorites ----------- Power Ion Engine Engine Ion Engine Power Core Light Nuclear Core Propulsion Aluminum Leg Treads Light Treads Leg Aluminum Leg Hover Unit Gravmag System Utility Signal Interpreter Device Improved Heat Sink Storage Large Storage Unit Processor Signal Interpreter Hackware Relay Coupler [NC] Protection Hardened Light Armor Plating Weapon Improved Medium Laser Energy Gun Improved Medium Laser Ballistic Gun Minigun Ballistic Cannon Light Cannon Launcher Rocket Launcher Special Weapon Remote Datajack Impact Weapon Hammer Slashing Weapon Mining Claw Build | -11 -10 -9 -8 -8 -8 -8 ------- Run | Yrd Mat Mat Mat Gar Mat Sto Slots Evolved 4 | . . 2 2 . . . Power . | . . . . . . . Propulsion 2 | . . 1 1 . . . Utility 2 | . . 1 1 . . . Weapon . | . . . . . . . Parts Attached 72 | 7 6 14 . 28 17 . Power 8 | 1 1 2 . 3 1 . Engine 6 | 1 1 2 . 1 1 . Core 2 | . . . . 2 . . Reactor . | . . . . . . . Propulsion 30 | 2 2 4 . 14 8 . Treads 6 | . . . . 2 4 . Leg 19 | 2 2 4 . 11 . . Wheel . | . . . . . . . Hover 5 | . . . . 1 4 . Flight . | . . . . . . . Utility 15 | 2 1 4 . 4 4 . Device 7 | 1 1 1 . 3 1 . Storage 3 | 1 . 1 . . 1 . Processor 2 | . . 1 . 1 . . Hackware 1 | . . . . . 1 . Protection 2 | . . 1 . . 1 . Artifact . | . . . . . . . Weapon 19 | 2 2 4 . 7 4 . Energy Gun 4 | 1 . 2 . 1 . . Energy Cannon . | . . . . . . . Ballistic Gun 6 | 1 . 2 . 3 . . Ballistic Cannon 4 | . 1 . . 1 2 . Launcher 1 | . . . . 1 . . Special Weapon 1 | . . . . . 1 . Impact Weapon 1 | . . . . 1 . . Slashing Weapon 2 | . 1 . . . 1 . Piercing Weapon . | . . . . . . . Special Melee Weapon . | . . . . . . . Unidentified Prototypes 2 | . . 2 . . . . Parts Lost 36 | . . 3 . 23 9 1 Power 4 | . . . . 3 1 . Propulsion 19 | . . 2 . 13 3 1 Utility 6 | . . 1 . 3 2 . Weapon 7 | . . . . 4 3 . Highest Loss Streak 8 | . . 1 . 8 6 1 To Critical Strikes 1 | . . . . 1 . . Average Backups 10 | 5 7 10 14 12 11 8 Power 1 | . 1 1 1 1 1 1 Propulsion . | 3 1 . . . . . Utility 5 | . 3 4 7 6 7 4 Weapon 3 | 1 2 4 6 4 1 1 Tool/Special . | . . . . . . . Unused Backups 20 | 1 7 1 . 2 3 6 Power 1 | . . . . . . 1 Propulsion 5 | . 4 . . . 1 . Utility 11 | 1 1 1 . 2 1 5 Weapon 2 | . 2 . . . . . Tool/Special 1 | . . . . . 1 . Average Slot Usage (%) 94 | . 100 99 90 86 95 78 Engine 8 | . 14 11 9 3 6 8 Core 1 | . . . . 5 2 . Treads 4 | . . . . 5 17 22 Leg 23 | . 28 32 36 21 3 . Hover 2 | . . . . 1 12 . Device 9 | . 14 5 9 11 12 16 Storage 10 | . 14 11 9 9 9 8 Processor 8 | . . 11 9 10 9 8 Protection 2 | . . 4 . . 3 . Energy Gun 5 | . 4 10 9 3 . . Ballistic Gun 6 | . 8 6 9 7 2 . Ballistic Cannon 6 | . 13 4 . 1 14 16 Impact Weapon 1 | . . . . 3 . . Peak Build Rating 41 | 8 10 19 17 28 41 26 Average Rating 18 | 5 9 15 17 21 28 23 On Entrance 15 | . 8 10 17 17 28 26 Avg Prop Armor Cover (%) 6 | . . . . 6 4 . Naked Turns 8 | . . . . . . 8 Heaviest Build 51 | 15 16 38 32 45 51 42 Greatest Support 80 | 20 26 39 43 45 80 60 Greatest Overweight (x) 8 | 3 . 1 . 8 2 1 Average Overweight (x) . | . . . . . . . Largest Inventory Capacity 15 | 8 8 15 15 15 15 10 Average Capacity 12 | 7 8 12 15 15 12 9 Most Carried 15 | 8 8 15 14 14 15 9 Average Carried 10 | 5 7 10 14 12 11 8 Final Capacity 15 | 8 8 15 15 15 10 5 Final Carried 15 | 8 8 15 14 14 9 5 Class Distribution -------------------- 63% | Mutant 34% | Scavenger-Mutant Dominant Class ---------------- Mutant | -10/Materials Mutant | -9/Materials Mutant | -8/Materials Scavenger-Mutant | -8/Garrison Scavenger-Mutant | -8/Materials Scavenger-Mutant | -8/Storage Resources | -11 -10 -9 -8 -8 -8 -8 ----------- Run | Yrd Mat Mat Mat Gar Mat Sto Matter Collected 3621 | 303 392 732 . 1363 828 3 Remotely . | . . . . . . . Salvage Created 3490 | 166 319 1194 . 1113 686 12 Parts 213 | 12 21 70 . 63 46 1 Haulers Intercepted 8 | . 2 5 . . 1 . Recyclers Shooed 2 | . . 1 . . 1 . Parts Field Recycled . | . . . . . . . Retrieved Matter . | . . . . . . . Parts Self-Destructed . | . . . . . . . Prevented . | . . . . . . . Parts Restored . | . . . . . . . Kills | -11 -10 -9 -8 -8 -8 -8 ------- Run | Yrd Mat Mat Mat Gar Mat Sto Combat Hostiles Destroyed 93 | . 9 23 . 39 21 1 Melee 2 | . . . . . 2 . Guns 41 | . 4 16 . 17 4 . Cannons 25 | . 5 7 . 1 11 1 AOE 24 | . . . . 20 4 . Classes Destroyed 14 | 2 5 3 . 3 1 . Worker 1 | . 1 . . . . . Builder 1 | . . . . . 1 . Tunneler 3 | 3 . . . . . . Hauler 8 | . 2 5 . . 1 . Recycler 1 | 1 . . . . . . Operator 2 | . 1 1 . . . . Watcher 4 | . 3 . . . 1 . Swarmer 27 | . 9 3 . 11 3 1 Grunt 38 | . . 11 . 15 12 . Brawler 5 | . . . . 3 2 . Duelist 1 | . . 1 . . . . Sentry 16 | . . 8 . 4 4 . Hunter 2 | . . . . 2 . . Programmer 4 | . . . . 4 . . Best Kill Streak 11 | 2 3 6 . 11 7 1 Combat Bots Only 11 | . 3 6 . 11 6 1 Max Kills in Single Turn 4 | 1 2 1 . 3 4 1 Gunslinging 1 | . . . . 1 . . Exploded 3 | . . . . 3 3 . Melee 1 | . . . . . 1 . Uniques/NPCs Destroyed . | . . . . . . . Combat | -11 -10 -9 -8 -8 -8 -8 -------- Run | Yrd Mat Mat Mat Gar Mat Sto Hostile Shots Fired 523 | . 51 109 . 213 117 33 Missed 140 | . 14 25 . 56 36 9 Hits 383 | . 37 84 . 157 81 24 Melee 5 | . . 3 . 2 . . Projectile 378 | . 37 81 . 155 81 24 Critical Strikes 16 | . . 1 . 13 2 . Damage Taken 4975 | 13 299 1167 . 2250 1048 198 Core 859 | . 37 271 . 406 73 72 Absorbed by Shields 138 | . . . . . 138 . Regen/Repaired (Parts) 207 | . . 207 . . . . Core Remaining (%) 72 | 100 85 32 . . . . Volleys Fired 317 | 11 49 89 . 91 75 2 Largest 2 | 2 2 2 . 2 2 2 Hottest 89 | 60 70 86 . 89 81 81 Shots Fired 604 | 22 98 177 . 159 144 4 Gun 367 | 22 49 144 . 133 19 . Cannon 203 | . 49 33 . 2 115 4 Launcher 27 | . . . . 24 3 . Special 7 | . . . . . 7 . Kinetic 423 | 11 87 90 . 97 134 4 Thermal 122 | . . 87 . 35 . . Explosive 27 | . . . . 24 3 . Electromagnetic 25 | 11 11 . . 3 . . Robot Hit Streak 20 | 2 5 16 . 20 6 1 Robot Miss Streak 8 | 2 7 5 . 2 6 8 Penetration Max . | . . . . . . . Secondary Targets 6 | . . 1 . 5 . . Max Gunslinging Chain 1 | . . 1 . 1 . . Shots Hit Robots 367 | 9 43 118 . 120 76 1 Core Hits 172 | 4 18 43 . 71 35 1 Critical Kills . | . . . . . . . Critical Parts Destroyed 4 | . . . . 4 . . Critical Strikes 13 | . . 8 . 5 . . Burn 9 | . . 8 . 1 . . Destroy 2 | . . . . 2 . . Smash 2 | . . . . 2 . . Melee Attacks 57 | . 1 10 . 44 2 . Impact 38 | . . . . 38 . . Slashing 19 | . 1 10 . 6 2 . Piercing . | . . . . . . . Sneak Attacks . | . . . . . . . Combat Hostiles . | . . . . . . . Follow-up Attacks . | . . . . . . . Damage Inflicted 9189 | 159 732 1970 . 3951 2308 69 Guns 3961 | 131 275 1578 . 1762 215 . Cannons 2578 | . 457 380 . 31 1649 61 Explosions 2493 | 28 . . . 2098 367 . Melee 137 | . . . . 60 77 . Ramming 20 | . . 12 . . . 8 Kinetic 4869 | 51 667 951 . 1275 1864 61 Thermal 1550 | 28 . 1007 . 515 . . Explosive 2465 | . . . . 2098 367 . Electromagnetic 148 | 80 65 . . 3 . . Impact 60 | . . . . 60 . . Slashing 77 | . . . . . 77 . Piercing . | . . . . . . . Highest Corruption 9 | . . . . 9 9 9 Average Corruption 7 | . . . . 6 9 9 Corruption Purged . | . . . . . . . Corruption Blocked . | . . . . . . . Effects 77 | . . . . 40 36 1 Message Errors 13 | . . . . 7 6 . Matter Fused 21 | . . . . 16 5 . Heat Flow Errors 6 | . . . . 3 2 1 Energy Discharges 10 | . . . . 3 7 . Parts Fused 1 | . . . . 1 . . Data Loss (minor) 11 | . . . . 5 6 . Data Loss (major) 5 | . . . . 3 2 . Misfires 7 | . . . . 1 6 . Alerts 1 | . . . . . 1 . Weapon Failures 2 | . . . . 1 1 . Overload Shots . | . . . . . . . Overflow Damage 170 | 3 11 . . 103 49 4 Projectiles 64 | . 11 . . . 49 4 Explosions 66 | 3 . . . 63 . . Melee 40 | . . . . 40 . . Knockbacks 32 | . 6 3 . . 23 . Impact . | . . . . . . . Kinetic 30 | . 6 3 . . 21 . Secondary 2 | . . . . . 2 . Self-Inflicted Damage 103 | 13 . . . 86 . 4 Shots 5 | 1 . . . 4 . . Rammed 1 | . . . . . . 1 Targets Rammed 2 | . . 1 . . . 1 Kicked 1 | . . 1 . . . . Crushed . | . . . . . . . Highest Temperature 284 | 12 63 258 . 235 284 240 Average Temperature 67 | 12 24 66 . 31 87 77 Received Heat Transfer 1576 | . . 438 . 558 571 9 Effects 4 | . . . . . 1 3 Energy Bleed 1 | . . . . . 1 . Interference 3 | . . . . . . 3 Siege Activations . | . . . . . . . Martial Activations . | . . . . . . . Shielding Activations . | . . . . . . . Robots Disrupted . | . . . . . . . Combat Hostiles . | . . . . . . . Robots Corrupted . | . . . . . . . Combat Hostiles . | . . . . . . . Parts Fried . | . . . . . . . Impact Corruptions 3 | . . . . 3 . . Robots Melted 1 | . . . . 1 . . Combat Hostiles 1 | . . . . 1 . . Parts Melted 5 | . . 5 . . . . Heat Transferred 3952 | 50 . 2812 . 1090 . . Parts Sabotaged . | . . . . . . . Parts Stolen . | . . . . . . . Parts Stripped . | . . . . . . . Power Chain Reactions 1 | 1 . . . . . . Alert | -11 -10 -9 -8 -8 -8 -8 ------- Run | Yrd Mat Mat Mat Gar Mat Sto Maximum Alert Level 4 | . . 1 . 4 2 1 Low Security (%) 34 | 100 100 41 100 4 . . Level 1 24 | . . 58 . 3 9 100 Level 2 20 | . . . . 19 90 . Level 3 18 | . . . . 64 . . Level 4 2 | . . . . 8 . . Level 5 . | . . . . . . . High Security . | . . . . . . . Max Security . | . . . . . . . Peak Influence 1197 | 5 82 370 93 1197 583 229 Initial 583 | . . 6 93 60 583 228 Average 372 | 1 30 157 93 795 520 219 Influence Increases 3135 | 20 325 751 . 1367 651 21 Destroy 0b10 Robot/C 1860 | . 180 460 . 780 420 20 Destroy 0b10 Robot/NC 105 | 20 40 30 . . 15 . Destroy Leader 314 | . 40 150 . 20 104 . Successful Hack 68 | . 3 30 . 30 5 . Disable Machine 180 | . 45 75 . . 60 . Anti-Garrison Action 400 | . . . . 400 . . Destroy Structure 193 | . 2 6 . 137 47 1 Lose Combat Pursuer 15 | . 15 . . . . . Influence Decreases 2926 | 20 309 544 130 263 1306 354 Entered New Map 1101 | . . 10 130 33 614 314 Time Decay 1165 | 20 309 354 . . 452 30 Lost Part 360 | . . 30 . 230 90 10 Purge Threat 300 | . . 150 . . 150 . Squads Dispatched 9 | . 1 3 . . 2 3 Investigation 2 | . 1 1 . . . . Extermination . | . . . . . . . Reinforcement 6 | . . 2 . . 2 2 Assault . | . . . . . . . Garrison 1 | . . . . . . 1 Intercept . | . . . . . . . Searches Triggered . | . . . . . . . Construction Impeded 1 | . . . . . 1 . Haulers Reinforced . | . . . . . . . Active Scanning Responses . | . . . . . . . Cargo Convoy Interrupts . | . . . . . . . Stealth | -11 -10 -9 -8 -8 -8 -8 --------- Run | Yrd Mat Mat Mat Gar Mat Sto Distress Signals 5 | . . 3 . . 2 . Communications Jammed . | . . . . . . . Distress Signals . | . . . . . . . Times Spotted 131 | . 16 44 . 35 29 7 Peak Tracking Total 10 | . 3 7 . 10 6 8 Tactical Retreats 1 | . 1 . . . . . Traps | -11 -10 -9 -8 -8 -8 -8 ------- Run | Yrd Mat Mat Mat Gar Mat Sto Traps Triggered 4 | . . . . 4 . . Indirectly . | . . . . . . . Trap Hack Attempts . | . . . . . . . Triggered . | . . . . . . . Disarmed . | . . . . . . . Reprogrammed . | . . . . . . . Reused . | . . . . . . . Traps Extracted . | . . . . . . . Installed . | . . . . . . . Triggered . | . . . . . . . Machines | -11 -10 -9 -8 -8 -8 -8 ---------- Run | Yrd Mat Mat Mat Gar Mat Sto Machines Disabled 16 | . 3 5 . 4 4 . Max in Single Turn 2 | . 1 2 . 1 1 . Garrison Relay 5 | . . . . 5 . . Machines Repaired . | . . . . . . . Machines Dismantled . | . . . . . . . Machines Sabotaged . | . . . . . . . Overloaded Fab Kills . | . . . . . . . Hacking | -11 -10 -9 -8 -8 -8 -8 --------- Run | Yrd Mat Mat Mat Gar Mat Sto Machines Accessed 29 | . 8 12 1 3 5 . Terminals 20 | . 7 7 . 3 3 . Fabricators . | . . . . . . . Repair Stations 2 | . . 2 . . . . Recycling Units 3 | . 1 1 . . 1 . Scanalyzers 3 | . . 2 . . 1 . Garrison Access 1 | . . . 1 . . . Total Hacks 90 | . 22 44 1 5 18 . Successful 49 | . 7 27 1 3 11 . Failed 39 | . 15 16 . 2 6 . Catastrophic 4 | . 2 1 . . 1 . Database Lockouts 2 | . . 1 . . 1 . Manual 27 | . 10 13 . . 4 . Terminals 66 | . 19 30 . 5 12 . Fabricators . | . . . . . . . Repair Stations 5 | . . 5 . . . . Recycling Units 8 | . 3 1 . . 4 . Scanalyzers 10 | . . 8 . . 2 . Garrison Access 1 | . . . 1 . . . Terminal Hacks 22 | . 3 12 . 3 4 . Record 1 | . . 1 . . . . Prototype ID Bank 1 | . . 1 . . . . Open Door 1 | . . . . 1 . . Emergency Access Points 4 | . . 1 . 1 2 . Unreport Threat 2 | . . 1 . . 1 . Locate Traps 3 | . 2 1 . . . . Dispatch Records 2 | . . 2 . . . . Recall Reinforcements 1 | . . 1 . . . . Hauler Manifests 1 | . . 1 . . . . Registered Components 2 | . 1 1 . . . . Zone Layout 3 | . . 2 . . 1 . Security Stations 1 | . . . . 1 . . Fabricator Hacks . | . . . . . . . Repair Station Hacks 4 | . . 4 . . . . Scan Component 2 | . . 2 . . . . Repair 2 | . . 2 . . . . Recycling Unit Hacks 5 | . 1 1 . . 3 . Process 1 | . . . . . 1 . Report Inventory 3 | . 1 1 . . 1 . Retrieve Matter 1 | . . . . . 1 . Scanalyzer 8 | . . 7 . . 1 . Insert Component 1 | . . 1 . . . . Analyze 1 | . . 1 . . . . Retrieve Study 6 | . . 5 . . 1 . Garrison Access Hacks 1 | . . . 1 . . . Unlock Access 1 | . . . 1 . . . Unauthorized Hacks 9 | . 3 3 . . 3 . Terminals 8 | . 2 3 . . 3 . Botnet 8 | . 2 3 . . 3 . Fabricators . | . . . . . . . Repair Stations . | . . . . . . . Recycling Units 1 | . 1 . . . . . Monitor 1 | . 1 . . . . . Scanalyzers . | . . . . . . . Garrison Access . | . . . . . . . Data Cores Recovered 2 | . 1 1 . . . . Used 2 | . 1 1 . . . . Hacking Detections 22 | . 8 10 . 2 2 . Full Trace Events 3 | . 2 1 . . . . Feedback Events . | . . . . . . . Feedback Blocked . | . . . . . . . Robot Schematics Acquired . | . . . . . . . Robots Built . | . . . . . . . Authchips . | . . . . . . . Time . | . . . . . . . Total Robot Build Rating . | . . . . . . . Part Schematics Acquired 1 | . . 1 . . . . Parts Built . | . . . . . . . Authchips . | . . . . . . . Time . | . . . . . . . Total Part Build Rating . | . . . . . . . Part Studies Acquired 6 | . . 5 . . 1 . Parts Repaired 2 | . . 2 . . . . Time 64 | . . 64 . . . . Parts Recycled . | . . . . . . . Recycled Matter 85 | . . . . . 85 . Retrieved Matter 85 | . . . . . 85 . Retrieved Components . | . . . . . . . Parts Scanalyzed 1 | . . 1 . . . . Part Schematics Acquired 1 | . . 1 . . . . Parts Damaged . | . . . . . . . Bothacking | -11 -10 -9 -8 -8 -8 -8 ------------ Run | Yrd Mat Mat Mat Gar Mat Sto Used RIF Installer 1 | . . . . 1 . . Robots Hacked 3 | . . . . . 3 . Non-combat 3 | . . . . . 3 . Combat . | . . . . . . . Robot Hacks Applied 4 | . . . . . 4 . map_walls 1 | . . . . . 1 . locate_stockpiles 1 | . . . . . 1 . mark_security 1 | . . . . . 1 . link_fov 1 | . . . . . 1 . Relay Couplers Released 23 | . . . . 23 . . Machine Destruction 20 | . . . . 20 . . Programmers 3 | . . . . 3 . . Attached 1 | . . . . . 1 . Fabnet Peak Effective % . | . . . . . . . Robots Rewired . | . . . . . . . Allies Hacked . | . . . . . . . Hacks Repelled . | . . . . . . . Allies | -11 -10 -9 -8 -8 -8 -8 -------- Run | Yrd Mat Mat Mat Gar Mat Sto Total Allies . | . . . . . . . Largest Group . | . . . . . . . Highest-Rated Group . | . . . . . . . Highest-Rated Ally . | . . . . . . . Total Orders . | . . . . . . . Ally Attacks . | . . . . . . . Total Damage . | . . . . . . . Kills . | . . . . . . . Allies Corrupted . | . . . . . . . Allies Melted . | . . . . . . . Intel | -11 -10 -9 -8 -8 -8 -8 ------- Run | Yrd Mat Mat Mat Gar Mat Sto Active Infowar (turns) 3032 | 25 1063 1356 19 1 500 68 Sensors 2068 | . 124 1356 19 1 500 68 Seismic 964 | 25 939 . . . . . Robot Analysis Total . | . . . . . . . Derelict Logs Recovered . | . . . . . . . Drone Launches . | . . . . . . . Drone Recoveries . | . . . . . . . Exploration | -11 -10 -9 -8 -8 -8 -8 ------------- Run | Yrd Mat Mat Mat Gar Mat Sto Turns Passed 7009 | 172 1064 2581 19 1962 1134 77 Spaces Moved 3357 | 100 666 1037 14 1037 467 36 Core 16 | 4 . . . 1 . 11 Treads 419 | . . . . 143 251 25 Legs 2721 | 96 666 1037 14 833 75 . Wheels . | . . . . . . . Hover 201 | . . . . 60 141 . Flight . | . . . . . . . Fastest Speed 50 | 50 120 105 105 105 108 50 Average Speed 139 | 119 120 139 105 145 158 136 Slowest Speed 450 | 200 120 175 105 450 216 200 Overloaded Moves . | . . . . . . . Propulsion Burnouts . | . . . . . . . Robots Hopped . | . . . . . . . Potential Cave-ins . | . . . . . . . Cave-ins Triggered . | . . . . . . . Exploration Rate (%) 44 | 5 98 76 2 86 38 9 Regions Visited 6 Branch Regions 1 Pre-discovered Areas . | . . . . . . . Known Exits Taken 3 | . . 1 1 . 1 . Unknown Exits Taken 2 | 1 1 . . . . . Scrap Searched . | . . . . . . . Spaces Dug 10 | . . 4 . 6 . . Terrain Destroyed 149 | 3 . 4 . 98 43 1 Melee 10 | . . 4 . 6 . . Projectile 31 | . . . . . 30 1 AOE 108 | 3 . . . 92 13 . Terrain Rammed . | . . . . . . . Walls Destroyed . | . . . . . . . Machines Disabled . | . . . . . . . Actions | -11 -10 -9 -8 -8 -8 -8 --------- Run | Yrd Mat Mat Mat Gar Mat Sto Total 4992 | 128 835 1968 18 1255 728 60 Wait 1032 | . 90 782 3 11 127 19 Move 3352 | 99 665 1036 14 1036 466 36 Hop . | . . . . . . . Pick Up 63 | 10 9 16 . 14 13 1 Fast Attach 28 | 6 2 1 . 13 6 . Attach 28 | 1 . 5 1 12 9 . Detach 1 | . . . . . 1 . Swap 61 | . 6 23 . 20 12 . Drop 42 | 1 13 5 . 5 17 1 Fire 317 | 11 49 89 . 91 75 2 Melee 57 | . 1 10 . 44 2 . Ram 1 | . . . . . . 1 Kick 1 | . . 1 . . . . Crush . | . . . . . . . Escape Stasis 9 | . . . . 9 . . Rewire . | . . . . . . . Trap . | . . . . . . . Miscellaneous . | . . . . . . . Route ------- -11/Scrapyard -10/Materials (discovered 4 exits: *Mat x3 / [*Min]) -9/Materials (discovered 3 exits: *Mat x3) -8/Materials -8/Garrison (discovered 3 exits: *Mat x3) -8/Materials -8/Storage History --------- Turn | Location | Event 10 | -11/Scrapyard | Discovered new exit (range 15) 173 | -11/Scrapyard | Entered Materials 215 | -10/Materials | Discovered new exit (range 16) 303 | -10/Materials | Build established: Mutant 605 | -10/Materials | Discovered new exit (range 15) 736 | -10/Materials | Discovered new exit (range 4) 1074 | -10/Materials | Discovered new exit (range 7) 1237 | -10/Materials | Entered another Materials area 1237 | -9/Materials | Evolved 2 slots: Propulsion x1, Utility x1 2404 | -9/Materials | Discovered new exit (range 5) 2588 | -9/Materials | Identified exit to Materials 2634 | -9/Materials | Central database locked down 2662 | -9/Materials | Discovered exit to Materials (range 16) 2937 | -9/Materials | Core integrity fell below 50% 2998 | -9/Materials | Repaired Imp. Aluminum Leg+ 3050 | -9/Materials | Discovered exit to Materials (range 3) 3281 | -9/Materials | Repaired Hrd. Light Armor Plating 3818 | -9/Materials | Entered another Materials area 3818 | -8/Materials | Evolved 2 slots: Propulsion x1, Utility x1 3837 | -8/Materials | Identified exit to Garrison 3837 | -8/Materials | Entered Garrison 3884 | -8/Garrison | Triggered checkpoint 3895 | -8/Garrison | Triggered checkpoint 3941 | -8/Garrison | Lost 3 parts (3n) 3948 | -8/Garrison | Destroyed 8 combat bots 4015 | -8/Garrison | Destroyed 11 combat bots 4093 | -8/Garrison | Discovered new exit (range 8) 4105 | -8/Garrison | Triggered checkpoint 4143 | -8/Garrison | Garrison Relay disabled 4321 | -8/Garrison | Build established: Scavenger-Mutant 4336 | -8/Garrison | Garrison Relay disabled 4355 | -8/Garrison | Triggered checkpoint 4367 | -8/Garrison | Triggered checkpoint 4492 | -8/Garrison | Garrison Relay disabled 4689 | -8/Garrison | Core integrity fell below 50% 4757 | -8/Garrison | Lost 8 parts (1p3n1u3w) 4955 | -8/Garrison | Discovered new exit (range 14) 4998 | -8/Garrison | Spotted B-75 Beast 4998 | -8/Garrison | Spotted B-75 Beast 5125 | -8/Garrison | Triggered checkpoint 5125 | -8/Garrison | Garrison Relay disabled 5396 | -8/Garrison | Learned Materials security intel 5512 | -8/Garrison | Installed Relay Interface Framework 5527 | -8/Garrison | Triggered checkpoint 5547 | -8/Garrison | Garrison Relay disabled 5767 | -8/Garrison | Discovered new exit (range 14) 5797 | -8/Garrison | Identified exit to Materials 5799 | -8/Garrison | Entered Materials 6179 | -8/Materials | Lost 6 parts (1p2n1u2w) 6215 | -8/Materials | Build established: Mutant 6249 | -8/Materials | Core integrity fell below 20% 6540 | -8/Materials | Discovered new exit (range 16) 6617 | -8/Materials | Build established: Scavenger-Mutant 6761 | -8/Materials | Central database locked down 6914 | -8/Materials | Identified exit to Storage 6933 | -8/Materials | Entered Storage 6970 | -8/Storage | Garrison activated, responded to threat 7002 | -8/Storage | Released all parts (9) 7010 | -8/Storage | Destroyed by S-10 Pest with Light Assault Rifle Last Messages --------------- S010. 06993_ ALERT: Hostiles spotted, dispatching reinforcements to Terminal S004. 07000_ System corrupted: Heat flow error (+260). 07001_ Overheating: System interference. 07001_ Assault Cannon temporarily disabled. 07001_ Imp. Sensor Array temporarily disabled. 07001_ Signal Interpreter temporarily disabled. 07002_ Released Imp. Hardlight Generator. 07002_ Released Med. Storage Unit. 07002_ Released Signal Interpreter. 07002_ Released Rnf. Ion Engine. 07002_ Released Lgt. Treads+. 07002_ Released Magnetic Acceleration Cannon. 07002_ Released Imp. Sensor Array. 07002_ Released Assault Cannon. 07002_ Released Lgt. Treads+. 07003_ Dropped Transmission Jammer. 07004_ Acquired Remote Datajack. 07007_ Slammed into S-10 Pest. Map ----- +----------------------------------------------------+ | | | | | | | | | | | ?????????????????????????????????????????????????? | | ?????????????????????????????????????????????????? | | ?????????????????????????????????????????????????? | | ?????????????????????????????????????????????????? | | ?????????????????????????????????????????????????? | | ?????????????????????????????????????????????????? | | ?????????????????????????????????????????????????? | | ?????????????????????????????????????????????????? | | ?????????????????????????????????????????????????? | | ?#####???????????????????????????????????????????? | | ?# #???????????????????????????????????????????? | | ?# #?????######????????????????????????????????? | | ?# #?????? #????????????????????????????????? | | ?# #???????" #????????????????????????????????? | | ?# ##??????"!*###########??????????????????????? | | ?# ## ?????"=!/!! =! s#??????????????????????? | | ?# ## """"""]!######### #??????????????????????? | | ?# ## #???????# #??????????????????????? | | ?# ## #???????# #??????????????????????? | | ## ## #???????# #??????????????????????? | | # #####/##########??#@#??????????????????????? | | # #??????????????????????? | | # " g +??????????????????????? | | # =% #??????????????????????? | | # ## ################;#??????????????????????? | | ######## #??????????????###??????????????????????? | | ???????# #???????????????????????????????????????? | | ???????# #???????????????????????????????????????? | | ???????# #???????????????????????????????????????? | | ???????# ???????????????????????????????????????? | | ???????/ ???????????????????????????????????????? | | ???????# ???????????????????????????????????????? | | ????????##???????????????????????????????????????? | | ?????????????????????????????????????????????????? | | ?????????????????????????????????????????????????? | | ?????????????????????????????????????????????????? | | ?????????????????????????????????????????????????? | | ?????????????????????????????????????????????????? | | ?????????????????????????????????????????????????? | | ?????????????????????????????????????????????????? | | ?????????????????????????????????????????????????? | | ?????????????????????????????????????????????????? | | ?????????????????????????????????????????????????? | | ?????????????????????????????????????????????????? | | ?????????????????????????????????????????????????? | +----------------------------------------------------+ Best States ------------- Heat Dissipation 45 Energy Generation 15 Energy Capacity 265 Matter Stores 300 Matter Capacity 300 Sight Range 16 Robot Scan Range 15 Terrain Scan Density 10 Armor Coverage 150 Evasion (%) 55 Targeting Accuracy 6 Recoil Reduction 4 Relay Coupler Types 1 Relay Coupler Value 11 Item Schematics ----------------- Aluminum Leg | -9/Materials | Scanalyzed Robot Schematics ------------------ None Fabricated ------------ Nothing Repaired ---------- Imp. Aluminum Leg | 12% | -9/Materials Hrd. Light Armor Plating | 33% | -9/Materials Studied --------- Imp. Aluminum Leg | -9/Materials | Hacked Ion Engine | -9/Materials | Hacked Aluminum Leg | -9/Materials | Hacked Rocket Launcher | -9/Materials | Hacked Imp. Ion Engine | -9/Materials | Hacked Lgt. Treads | -8/Materials | Hacked Alien Tech Used ----------------- None Achievements -------------- Dynamic Key Join The Dark Side Let Me Out Of Here Mindtrick Part-time Excavator Quantum Hacking Resistances Are Futile root@ Challenges ------------ None Game ------ Seed ServoAblativeDriveblaster Manual? 0 Play Time 01:36:57 Cumulative 30.1 hours Start 2025.11.14 @ 15:32:54 End 2025.11.14 @ 17:41:24 Sessions 1 Manual Loads 0 Difficulty Rogue Special Mode None Game No. 21 Rogue 21 Adventurer 0 Explorer 0 Win Type - Total 0 Types 0/0/0/0/0/0/0/0/0/0 Lore% 13 Gallery% 23 Achievement% 16 Wizard Run 0 Options --------- Layout 0 ASCII 0 Keyboard 0 Movement Mouse Keybinds 0 Fullscreen 1 Font 24/Smallcaps Map View 76x50 Zoom Use 0% Tactical HUD 1 Map Filters NONE Filters NONE Steam 1 RUN: c55bc243-cd8a-46fd-899d-96ecf62c7349